bitfinex/quotes_SOLUSD_20230904
["timestamp","ask_amount","ask_price","bid_price","bid_amount"]
[1693799375847,99.6243,19.819,19.802,11.68191]
[1693799376046,99.6243,19.819,19.803,55.0]
[1693799384137,99.6243,19.819,19.802,11.68191]
[1693799384342,19.33976174,19.818,19.802,11.68191]
[1693799384741,55.0,19.817,19.802,11.68191]
[1693799384939,7.873,19.815,19.798,20.0]
[1693799385141,27.21276174,19.815,19.795,20.0]
[1693799385446,19.33976174,19.815,19.795,20.0]
[1693799386541,25.46,19.81,19.792,54.0735988]
[1693799386875,25.46,19.81,19.791,60.75719396]
[1693799386876,75.0,19.809,19.791,60.75719396]
[1693799387243,96.9962,19.808,19.791,60.75719396]
[1693799387953,96.9962,19.808,19.792,55.0]
[1693799391871,55.0,19.807,19.786,53.73984547]
[1693799392158,7.877,19.805,19.787,20.0]
[1693799392847,55.0,19.807,19.787,20.0]
[1693799393052,25.46,19.8,19.787,20.0]
[1693799393650,25.46,19.8,19.788,55.0]
[1693799393851,25.46,19.8,19.789,20.0]
[1693799394047,25.46,19.8,19.783,101.34818307]
[1693799394357,25.46,19.8,19.765,454.10317929]
[1693799394358,27.879,19.799,19.777,139.7289385]
[1693799394561,176.893,19.799,19.778,75.0]
[1693799394951,169.014,19.799,19.778,20.0]
[1693799395148,149.014,19.799,19.778,20.0]
[1693799395653,149.014,19.799,19.779,55.0]
[1693799400456,25.46,19.79,19.778,20.0]
[1693799401959,25.46,19.79,19.779,55.0]
[1693799405252,149.014,19.799,19.779,55.0]
[1693799424397,94.014,19.799,19.779,55.0]
[1693799424568,25.46,19.79,19.77,25.46]
[1693799425075,112.6406,19.789,19.77,25.46]
[1693799425880,112.6406,19.789,19.771,55.0]
[1693799436296,127.6299832,19.789,19.771,55.0]
[1693799437190,167.14464447,19.789,19.771,55.0]
[1693799440392,92.6406,19.789,19.771,55.0]
[1693799440700,92.6406,19.789,19.771,103.89604547]
[1693799440881,92.6406,19.789,19.772,20.0]
[1693799441079,92.6406,19.789,19.773,55.0]
[1693799441275,92.6406,19.789,19.774,20.0]
[1693799441491,92.6406,19.789,19.775,55.0]
[1693799441703,92.6406,19.789,19.776,20.0]
[1693799441884,92.6406,19.789,19.777,55.0]
[1693799442082,92.6406,19.789,19.778,20.0]
[1693799451597,25.46,19.79,19.77,25.46]
[1693799451797,173.025,19.789,19.77,25.46]
[1693799453398,173.025,19.789,19.771,55.0]
[1693799458903,173.025,19.789,19.77,25.46]
[1693799459587,118.025,19.789,19.77,25.46]
[1693799460400,118.025,19.789,19.771,55.0]
[1693799465406,55.0,19.788,19.771,55.0]
[1693799466712,55.0,19.788,19.77,25.46]
[1693799468409,55.0,19.788,19.771,55.0]
[1693799479427,137.96837714,19.789,19.771,55.0]
[1693799488315,25.46,19.78,19.766,48.89604547]
[1693799488527,25.46,19.78,19.764,88.519908]
[1693799488719,25.46,19.78,19.765,20.0]
[1693799489323,25.46,19.78,19.764,20.0]
[1693799489625,25.46,19.78,19.765,55.0]
[1693799489823,25.46,19.78,19.766,20.0]
[1693799490026,25.46,19.78,19.767,55.0]
[1693799490224,25.46,19.78,19.768,20.0]
[1693799490533,25.46,19.78,19.769,55.0]
[1693799497840,157.30813888,19.789,19.769,55.0]
[1693799498130,55.0,19.788,19.769,55.0]
[1693799500339,55.0,19.788,19.769,54.5]
[1693799500533,0.49999999,19.787,19.769,54.5]
[1693799501139,0.49999999,19.787,19.769,52.0]
[1693799506957,2.99999999,19.788,19.769,52.0]
[1693799507945,57.99999999,19.788,19.769,52.0]
[1693799510632,77.34011459,19.788,19.769,52.0]
[1693799515542,25.46,19.78,19.769,52.0]
[1693799515945,2.99999999,19.779,19.769,52.0]
[1693799517953,25.46,19.78,19.769,52.0]
[1693799519651,2.99999999,19.788,19.769,52.0]
[1693799519854,57.99999999,19.788,19.769,52.0]
[1693799520242,77.34011459,19.788,19.769,52.0]
[1693799523847,25.46,19.78,19.769,52.0]
[1693799524049,2.99999999,19.779,19.769,52.0]
[1693799528453,2.99999999,19.779,19.768,20.0]
[1693799528655,2.99999999,19.779,19.769,55.0]
[1693799529050,2.99999999,19.786,19.765,20.0]
[1693799529251,57.99999999,19.786,19.766,55.0]
[1693799529484,57.99999999,19.786,19.767,20.0]
[1693799529651,57.99999999,19.786,19.768,55.0]
[1693799529858,57.99999999,19.786,19.769,20.0]
[1693799537272,73.55386948,19.786,19.769,20.0]
[1693799540754,114.46433988,19.786,19.769,20.0]
[1693799547375,25.46,19.78,19.769,20.0]
[1693799547672,2.99999999,19.779,19.769,20.0]
[1693799555673,2.99999999,19.779,19.764,20.0]
[1693799555864,2.99999999,19.779,19.765,55.0]
[1693799556075,2.99999999,19.779,19.766,20.0]
[1693799556267,2.99999999,19.779,19.767,55.0]
[1693799556775,2.99999999,19.779,19.768,20.0]
[1693799557273,2.99999999,19.779,19.763,48.89604547]
[1693799557578,77.99999999,19.779,19.757,48.58477744]
[1693799558082,91.3076,19.778,19.757,48.58477744]
[1693799558283,2.99999999,19.777,19.757,48.58477744]
[1693799558475,57.99999999,19.777,19.757,48.58477744]
[1693799558864,91.3076,19.776,19.757,48.58477744]
[1693799559064,2.99999999,19.775,19.757,48.58477744]
[1693799559564,2.99999999,19.775,19.761,55.0]
[1693799561370,2.99999999,19.777,19.761,55.0]
[1693799561571,97.67699999,19.777,19.761,55.0]
[1693799561778,2.99999999,19.777,19.761,55.0]
[1693799562979,57.99999999,19.778,19.761,55.0]
[1693799563678,90.5008,19.777,19.761,55.0]
[1693799563878,2.99999999,19.776,19.761,55.0]
[1693799565278,2.99999999,19.777,19.761,55.0]
[1693799565682,2.99999999,19.777,19.761,52.5]
[1693799577195,2.99999999,19.777,19.761,45.0]
[1693799580988,25.46,19.77,19.757,48.58477744]
[1693799581309,3.43175337,19.769,19.758,20.0]
[1693799581897,3.43175337,19.769,19.754,20.0]
[1693799582296,3.43175337,19.769,19.754,68.58477744]
[1693799582999,3.43175337,19.769,19.754,48.58477744]
[1693799583196,3.43175337,19.769,19.755,55.0]
[1693799583402,3.43175337,19.769,19.755,103.58477744]
[1693799583608,3.43175337,19.769,19.756,48.58477744]
[1693799583791,3.43175337,19.769,19.757,55.0]
[1693799584118,4.94461036,19.776,19.757,103.58477744]
[1693799584290,4.94461036,19.774,19.757,103.58477744]
[1693799584489,4.94461036,19.776,19.757,103.58477744]
[1693799584799,55.0,19.775,19.758,20.0]
[1693799585000,4.94461036,19.774,19.759,55.0]
[1693799597112,45.41400843,19.774,19.759,55.0]
[1693799599904,60.42615417,19.774,19.759,55.0]
[1693799601517,25.46,19.77,19.759,55.0]
[1693799601818,4.94461036,19.769,19.758,20.0]
[1693799602009,4.94461036,19.769,19.754,20.0]
[1693799602208,4.94461036,19.769,19.755,55.0]
[1693799602505,4.94461036,19.769,19.756,20.0]
[1693799602901,24.94461036,19.769,19.753,50.69189907]
[1693799603103,24.94461036,19.769,19.753,25.23189907]
[1693799603901,24.94461036,19.769,19.754,55.0]
[1693799605911,24.94461036,19.769,19.753,55.0]
[1693799607113,4.94461036,19.769,19.753,55.0]
[1693799607311,24.94461036,19.769,19.753,55.0]
[1693799609730,40.38641197,19.769,19.753,55.0]
[1693799610710,55.0,19.768,19.753,55.0]
[1693799610910,4.94461036,19.767,19.753,55.0]
[1693799622317,25.46,19.76,19.747,80.23189907]
[1693799622522,25.46,19.76,19.748,20.0]
[1693799623134,2.57436956,19.759,19.742,20.0]
[1693799623329,2.57436956,19.759,19.743,25.46]
[1693799623531,25.46,19.76,19.744,20.0]
[1693799623737,25.46,19.76,19.745,55.0]
[1693799623933,25.46,19.76,19.746,20.0]
[1693799628037,25.46,19.76,19.743,25.46]
[1693799628340,79.29189845,19.759,19.741,25.23189907]
[1693799630121,59.29189845,19.759,19.741,25.23189907]
[1693799630327,59.29189845,19.759,19.741,24.73189907]
[1693799630542,4.29189845,19.759,19.741,24.73189907]
[1693799630841,24.29189845,19.759,19.741,24.73189907]
[1693799631047,24.29189845,19.759,19.742,55.0]
[1693799642648,4.29189845,19.759,19.742,55.0]
[1693799642833,4.29189845,19.759,19.743,119.6683109]
[1693799643144,25.46,19.76,19.744,55.0]
[1693799643447,96.5074,19.766,19.745,67.86249834]
[1693799643448,4.94461036,19.765,19.745,67.86249834]
[1693799643630,4.94461036,19.765,19.746,55.0]
[1693799643827,4.94461036,19.765,19.747,20.0]
[1693799644043,4.94461036,19.765,19.748,55.0]
[1693799644243,4.94461036,19.765,19.749,20.0]
[1693799644443,4.94461036,19.765,19.75,55.0]
[1693799645450,4.94461036,19.765,19.75,131.65290384]
[1693799648032,4.94461036,19.765,19.751,76.49301022]
[1693799648337,4.94461036,19.769,19.752,55.0]
[1693799648543,24.94461036,19.769,19.752,131.49301022]
[1693799651154,65.65752174,19.769,19.752,131.49301022]
[1693799651352,65.65752174,19.769,19.753,25.30010638]
[1693799651554,65.65752174,19.769,19.754,55.0]
[1693799661953,4.94461036,19.769,19.755,20.0]
[1693799662162,4.94461036,19.771,19.756,55.0]
[1693799662461,94.5971,19.772,19.757,20.0]
[1693799662764,3.16305786,19.771,19.758,55.0]
[1693799662967,3.16305786,19.771,19.759,20.0]
[1693799663169,121.93201036,19.779,19.76,55.0]
[1693799663465,55.0,19.778,19.76,55.0]
[1693799663652,4.94461036,19.777,19.76,55.0]
[1693799663855,55.0,19.776,19.76,55.0]
[1693799664054,4.94461036,19.775,19.76,55.0]
[1693799667561,25.46,19.77,19.76,55.0]
[1693799668462,4.94461036,19.769,19.76,55.0]
[1693799672869,25.46,19.77,19.76,55.0]
[1693799673174,4.94461036,19.778,19.76,55.0]
[1693799673362,4.94461036,19.778,19.76,80.46]
[1693799681174,4.94461036,19.778,19.761,76.49301022]
[1693799681376,40.35222671,19.779,19.762,75.0]
[1693799681580,2.49995159,19.779,19.763,76.49301022]
[1693799681777,25.46,19.78,19.764,55.0]
[1693799681973,2.55001829,19.779,19.765,25.30010638]
[1693799682175,25.46,19.78,19.766,75.0]
[1693799682372,2.69166148,19.779,19.766,100.30010638]
[1693799685177,25.46,19.78,19.766,100.30010638]
[1693799685578,2.50116535,19.779,19.766,100.30010638]
[1693799686284,4.94461036,19.784,19.767,25.30010638]
[1693799686583,4.94461036,19.781,19.768,75.0]
[1693799686784,4.94461036,19.783,19.768,75.0]
[1693799690581,4.94461036,19.783,19.77,25.46]
[1693799690887,4.94461036,19.783,19.771,55.0]
[1693799704397,4.94461036,19.783,19.768,20.0]
[1693799704591,4.94461036,19.783,19.769,55.0]
[1693799714591,4.94461036,19.783,19.764,51.19290384]
[1693799714798,4.94461036,19.783,19.76,25.46]
[1693799714799,25.46,19.78,19.76,25.46]
[1693799714997,79.94461036,19.779,19.76,25.46]
[1693799716097,79.94461036,19.779,19.761,55.0]
[1693799716510,79.94461036,19.779,19.76,25.46]
[1693799717800,79.94461036,19.779,19.761,55.0]
[1693799720008,79.94461036,19.779,19.76,25.46]
[1693799721417,79.94461036,19.779,19.761,55.0]
[1693799725014,175.32981036,19.779,19.761,55.0]
[1693799726117,190.84574358,19.779,19.761,55.0]
[1693799731217,230.38443856,19.779,19.761,55.0]
[1693799733627,230.38443856,19.779,19.761,80.30010638]
[1693799737034,175.38443856,19.779,19.761,80.30010638]
[1693799737226,175.38443856,19.779,19.762,25.30010638]
[1693799737427,175.38443856,19.779,19.763,55.0]
[1693799739119,175.38443856,19.779,19.763,80.30010638]
[1693799739643,175.38443856,19.779,19.763,55.0]
[1693799743759,55.0,19.778,19.763,55.0]
[1693799743940,4.94461036,19.777,19.763,55.0]
[1693799754657,4.94461036,19.777,19.762,55.0]
[1693799762664,4.94461036,19.778,19.762,55.0]
[1693799766470,4.94461036,19.778,19.763,25.30010638]
[1693799766661,4.94461036,19.778,19.764,55.0]
[1693799766861,4.94461036,19.778,19.764,80.30010638]
[1693799776378,4.94461036,19.778,19.764,55.0]
[1693799776580,4.94461036,19.778,19.763,55.0]
[1693799776781,4.94461036,19.778,19.76,25.46]
[1693799777982,4.94461036,19.778,19.761,55.0]
[1693799786890,4.94461036,19.778,19.761,80.30010638]
[1693799806116,4.94461036,19.778,19.762,25.30010638]
[1693799806323,4.94461036,19.778,19.763,55.0]
[1693799806518,4.94461036,19.778,19.764,25.30010638]
[1693799806819,4.94461036,19.778,19.765,55.0]
[1693799807117,4.94461036,19.778,19.765,80.30010638]
[1693799811626,4.94461036,19.778,19.765,55.0]
[1693799813622,4.94461036,19.778,19.76,25.46]
[1693799813824,12.83161036,19.778,19.76,25.46]
[1693799814426,4.94461036,19.778,19.76,25.46]
[1693799815517,4.94461036,19.778,19.761,55.0]
[1693799816434,25.46,19.77,19.755,25.30010638]
[1693799816631,25.46,19.77,19.75,25.46]
[1693799816632,4.94461036,19.768,19.75,25.46]
[1693799816931,12.83561036,19.768,19.748,90.73556191]
[1693799817314,55.0,19.767,19.748,51.18878991]
[1693799817513,12.83661036,19.766,19.748,51.18878991]
[1693799817918,25.46,19.76,19.743,51.18879]
[1693799818222,4.94461036,19.759,19.74,76.64878991]
[1693799818524,24.94461036,19.759,19.74,76.64878991]
[1693799818922,24.94461036,19.759,19.74,101.94889629]
[1693799819324,24.94461036,19.759,19.741,55.0]
[1693799820515,24.94461036,19.759,19.741,80.30010638]
[1693799820724,4.94461036,19.759,19.742,25.30010638]
[1693799820930,92.9801,19.768,19.743,75.0]
[1693799820931,4.94461036,19.767,19.743,75.0]
[1693799821128,20.09347111,19.767,19.744,76.48889629]
[1693799821340,20.09347111,19.767,19.745,75.0]
[1693799821545,20.09347111,19.767,19.746,25.30010638]
[1693799821721,20.09347111,19.767,19.747,75.0]
[1693799821916,20.09347111,19.767,19.747,100.30010638]
[1693799822127,55.0,19.766,19.747,100.30010638]
[1693799822334,4.94461036,19.765,19.747,100.30010638]
[1693799823727,4.94461036,19.765,19.748,25.30010638]
[1693799823930,4.94461036,19.765,19.749,75.0]
[1693799824226,4.94461036,19.766,19.749,75.0]
[1693799833235,4.94461036,19.766,19.75,25.46]
[1693799833435,4.94461036,19.766,19.751,55.0]
[1693799833741,4.94461036,19.767,19.751,80.30010638]
[1693799835332,4.94461036,19.767,19.752,20.0]
[1693799835527,4.94461036,19.769,19.753,80.30010638]
[1693799835727,4.94461036,19.769,19.754,51.18878991]
[1693799836045,4.94461036,19.769,19.755,100.30010638]
[1693799860553,4.94461036,19.769,19.75,25.46]
[1693799860855,24.94461036,19.769,19.75,25.46]
[1693799861053,24.94461036,19.769,19.75,50.92]
[1693799861358,24.94461036,19.769,19.75,76.22010638]
[1693799862157,24.94461036,19.769,19.751,55.0]
[1693799868153,32.83561036,19.769,19.75,50.76010638]
[1693799868462,12.83661036,19.767,19.747,51.18878991]
[1693799868651,4.94461036,19.765,19.748,20.0]
[1693799868848,4.94461036,19.766,19.748,20.0]
[1693799869455,4.94461036,19.766,19.749,55.0]
[1693799869657,4.94461036,19.767,19.749,55.0]
[1693799869858,55.0,19.766,19.749,55.0]
[1693799870168,4.94461036,19.765,19.749,55.0]
[1693799871067,55.0,19.764,19.748,20.0]
[1693799871268,25.46,19.76,19.746,20.0]
[1693799871457,4.94461036,19.759,19.746,20.0]
[1693799872360,4.94461036,19.759,19.747,55.0]
[1693799872671,4.94461036,19.759,19.748,20.0]
[1693799873970,4.94461036,19.759,19.745,25.30010638]
[1693799874163,24.94461036,19.759,19.746,55.0]
[1693799878459,24.94461036,19.759,19.74,25.46]
[1693799878778,24.94461036,19.759,19.741,80.30010638]
[1693799884377,66.40357691,19.759,19.741,80.30010638]
[1693799885682,66.40357691,19.759,19.741,25.30010638]
[1693799885882,55.0,19.758,19.741,25.30010638]
[1693799886084,4.94461036,19.757,19.741,25.30010638]
[1693799886388,55.0,19.756,19.741,25.30010638]
[1693799886574,4.94461036,19.755,19.741,25.30010638]
[1693799892387,4.94461036,19.757,19.742,55.0]
[1693799892589,4.94461036,19.757,19.742,80.30010638]
[1693799894391,55.0,19.756,19.74,25.46]
[1693799894690,4.94461036,19.755,19.737,76.48889629]
[1693799894883,4.94461036,19.755,19.738,45.30010638]
[1693799895991,4.94461036,19.755,19.739,55.0]
[1693799896193,4.94461036,19.755,19.739,80.30010638]
[1693799902783,4.94461036,19.757,19.74,50.76010638]
[1693799902983,4.94461036,19.757,19.741,55.0]
[1693799903195,4.94461036,19.757,19.741,80.30010638]
[1693799912192,4.94461036,19.757,19.741,79.80010638]
[1693799924607,4.94461036,19.758,19.741,79.80010638]
[1693799926109,4.94461036,19.758,19.742,25.30010638]
[1693799926312,4.94461036,19.758,19.743,55.0]
[1693799926609,4.94461036,19.758,19.744,25.30010638]
[1693799926800,4.94461036,19.758,19.745,55.0]
[1693799945519,4.94461036,19.758,19.74,25.46]
[1693799945714,4.94461036,19.758,19.741,55.0]
[1693799950212,4.94461036,19.758,19.742,25.30010638]
[1693799950519,4.94461036,19.758,19.743,103.06657244]
[1693799950720,4.94461036,19.758,19.744,25.30010638]
[1693799950917,4.94461036,19.758,19.745,55.0]
[1693799951106,4.94461036,19.758,19.745,80.30010638]
[1693799956234,4.94461036,19.758,19.746,45.30010638]
[1693799956417,4.94461036,19.764,19.747,55.0]
[1693799956617,4.94461036,19.764,19.748,20.0]
[1693799956816,4.94461036,19.764,19.749,55.0]
[1693799965718,25.46,19.76,19.748,20.0]
[1693799965925,4.94461036,19.759,19.747,20.0]
[1693799966238,4.94461036,19.759,19.745,20.0]
[1693799966421,4.94461036,19.759,19.743,20.0]
[1693799968035,4.94461036,19.759,19.744,55.0]
[1693799968235,4.94461036,19.759,19.745,20.0]
[1693799968423,4.94461036,19.759,19.746,55.0]
[1693799968619,4.94461036,19.759,19.747,20.0]
[1693799974945,4.94461036,19.759,19.748,55.0]
[1693799975131,4.94461036,19.759,19.749,20.0]
[1693799977742,4.94461036,19.759,19.749,19.5]
[1693799979765,60.42588564,19.759,19.749,19.5]
[1693799982830,60.42588564,19.759,19.742,20.0]
[1693799983034,60.42588564,19.759,19.743,55.0]
[1693799983337,60.42588564,19.759,19.744,20.0]
[1693799983535,60.42588564,19.759,19.745,55.0]
[1693799983737,60.42588564,19.759,19.746,20.0]
[1693799984038,60.42588564,19.759,19.747,55.0]
[1693799984342,60.42588564,19.759,19.748,20.0]
[1693800001356,4.94461036,19.759,19.748,20.0]
[1693800001659,40.32421478,19.765,19.749,55.0]
[1693800001660,4.94461036,19.764,19.749,55.0]
[1693800001965,4.94461036,19.764,19.75,25.46]
[1693800002269,4.94461036,19.766,19.751,55.0]
[1693800003264,4.94461036,19.766,19.752,25.30010638]
[1693800003458,25.46,19.77,19.753,55.0]
[1693800003656,4.94461036,19.769,19.754,45.30010638]
[1693800003856,26.42697345,19.778,19.754,45.30010638]
[1693800003857,4.94461036,19.777,19.755,55.0]
[1693800004160,4.94461036,19.777,19.756,45.30010638]
[1693800004466,25.46,19.77,19.757,55.0]
[1693800004657,25.46,19.77,19.758,20.0]
[1693800004853,4.94461036,19.769,19.758,20.0]
[1693800005462,4.94461036,19.769,19.751,20.0]
[1693800005661,4.94461036,19.769,19.752,55.0]
[1693800005863,4.94461036,19.769,19.753,20.0]
[1693800006056,4.94461036,19.769,19.754,55.0]
[1693800006253,4.94461036,19.769,19.755,20.0]
[1693800008466,4.94461036,19.769,19.756,55.0]
[1693800008646,4.94461036,19.769,19.757,20.0]
[1693800009469,4.94461036,19.769,19.752,20.0]
[1693800009664,4.94461036,19.769,19.753,55.0]
[1693800009861,4.94461036,19.769,19.754,20.0]
[1693800010061,4.94461036,19.769,19.755,55.0]
[1693800010253,4.94461036,19.769,19.756,20.0]
[1693800010873,4.94461036,19.769,19.757,55.0]
[1693800011068,4.94461036,19.775,19.757,80.30010638]
[1693800011274,4.94461036,19.775,19.76,25.46]
[1693800011461,4.94461036,19.775,19.761,55.0]
[1693800011771,4.94461036,19.775,19.761,80.30010638]
[1693800011962,4.94461036,19.777,19.761,80.30010638]
[1693800015579,4.94461036,19.779,19.762,64.95399026]
[1693800015870,4.94461036,19.782,19.763,80.30010638]
[1693800016073,4.94461036,19.782,19.764,20.0]
[1693800016370,4.94461036,19.782,19.765,55.0]
[1693800016557,4.94461036,19.782,19.766,20.0]
[1693800016758,4.94461036,19.782,19.767,55.0]
[1693800016966,4.94461036,19.782,19.768,20.0]
[1693800017289,4.94461036,19.782,19.769,55.0]
[1693800020958,4.94461036,19.782,19.768,20.0]
[1693800021163,4.94461036,19.782,19.769,55.0]
[1693800025667,4.94461036,19.782,19.764,20.0]
[1693800025870,4.94461036,19.782,19.765,55.0]
[1693800026260,4.94461036,19.782,19.766,20.0]
[1693800026576,4.94461036,19.782,19.767,55.0]
[1693800026874,4.94461036,19.782,19.768,20.0]
[1693800027061,4.94461036,19.782,19.769,55.0]
[1693800032173,4.94461036,19.782,19.77,25.46]
[1693800032372,4.94461036,19.782,19.771,55.0]
[1693800038989,4.94461036,19.783,19.771,55.0]
[1693800046283,97.0215,19.789,19.771,55.0]
[1693800046284,4.94461036,19.788,19.771,55.0]
[1693800047176,4.94461036,19.788,19.77,25.46]
[1693800047377,55.0,19.787,19.768,20.0]
[1693800047676,4.94461036,19.786,19.767,20.0]
[1693800048480,4.94461036,19.786,19.768,55.0]
[1693800048682,4.94461036,19.786,19.769,20.0]
[1693800048879,4.94461036,19.786,19.77,55.0]
[1693800050692,4.94461036,19.788,19.77,55.0]
[1693800052995,4.94461036,19.788,19.77,80.46]
[1693800053888,4.94461036,19.788,19.77,55.0]
[1693800055183,4.94461036,19.788,19.77,80.46]
[1693800072190,14.99241273,19.789,19.771,130.42691777]
[1693800072191,4.94461036,19.789,19.771,130.42691777]
[1693800072393,4.94461036,19.789,19.772,86.69964]
[1693800072590,24.94461036,19.799,19.773,81.95313664]
[1693800072795,65.62004008,19.799,19.774,86.69845]
[1693800073001,65.62004008,19.799,19.774,111.99855638]
[1693800073297,65.62004008,19.799,19.775,11.69786]
[1693800073504,4.94461036,19.797,19.776,75.0]
[1693800073895,25.46,19.79,19.776,75.0]
[1693800074193,4.94461036,19.789,19.776,75.0]
[1693800083317,4.94461036,19.795,19.776,75.0]
[1693800091104,4.94461036,19.795,19.78,25.46]
[1693800091318,4.94461036,19.795,19.781,55.0]
[1693800092910,4.94461036,19.798,19.781,55.0]
[1693800120149,4.94461036,19.798,19.78,25.46]
[1693800120351,55.0,19.797,19.78,25.46]
[1693800120649,4.94461036,19.796,19.776,20.0]
[1693800120848,24.74706954,19.796,19.776,20.0]
[1693800121347,4.94461036,19.794,19.776,20.0]
[1693800121555,4.94461036,19.789,19.776,20.0]
[1693800123057,4.94461036,19.789,19.777,55.0]
[1693800123439,4.94461036,19.789,19.778,20.0]
[1693800124555,4.94461036,19.793,19.779,55.0]
[1693800124758,4.94461036,19.795,19.779,55.0]
[1693800129152,4.94461036,19.795,19.78,25.46]
[1693800129354,4.94461036,19.795,19.781,55.0]
[1693800130863,4.94461036,19.798,19.781,55.0]
[1693800137151,4.94461036,19.798,19.78,25.46]
[1693800137356,25.46,19.79,19.778,20.0]
[1693800137558,4.94461036,19.789,19.775,20.0]
[1693800137864,4.94461036,19.789,19.771,20.0]
[1693800138163,4.94461036,19.796,19.772,25.28263349]
[1693800138356,4.94461036,19.796,19.773,20.0]
[1693800138565,4.94461036,19.796,19.773,53.34663349]
[1693800138863,4.94461036,19.798,19.774,11.69845]
[1693800139063,4.94461036,19.798,19.775,20.0]
[1693800139267,4.94461036,19.798,19.776,55.0]
[1693800139457,4.94461036,19.798,19.777,20.0]
[1693800139658,4.94461036,19.798,19.778,55.0]
[1693800139863,4.94461036,19.798,19.779,20.0]
[1693800140051,4.94461036,19.798,19.78,55.0]
[1693800146375,4.94461036,19.798,19.78,80.46]
[1693800147169,4.94461036,19.799,19.78,150.69662375]
[1693800147359,4.94461036,19.805,19.781,45.28263349]
[1693800147561,4.94461036,19.806,19.782,55.0]
[1693800147755,45.3205578,19.806,19.783,20.0]
[1693800147969,45.3205578,19.806,19.784,55.0]
[1693800148478,45.3205578,19.806,19.785,20.0]
[1693800148661,45.3205578,19.806,19.786,55.0]
[1693800148978,45.3205578,19.806,19.787,20.0]
[1693800149170,45.3205578,19.806,19.788,55.0]
[1693800149359,45.3205578,19.806,19.789,20.0]
[1693800149559,45.3205578,19.806,19.79,55.0]
[1693800150972,45.3205578,19.806,19.79,80.46]
[1693800151168,60.4721495,19.806,19.79,80.46]
[1693800151471,19.78871077,19.809,19.79,80.46]
[1693800151472,4.94461036,19.809,19.79,80.46]
[1693800151866,24.94461036,19.809,19.79,80.46]
[1693800152871,24.94461036,19.809,19.79,92.14899]
[1693800159582,24.94461036,19.809,19.79,37.14899]
[1693800160886,24.94461036,19.809,19.791,55.0]
[1693800169496,55.0,19.808,19.789,20.0]
[1693800169705,25.46,19.8,19.786,20.0]
[1693800169997,4.94461036,19.799,19.785,20.0]
[1693800171395,4.94461036,19.799,19.786,55.0]
[1693800171897,25.46,19.8,19.787,20.0]
[1693800172101,25.46,19.8,19.788,55.0]
[1693800172495,25.46,19.8,19.789,20.0]
[1693800172795,25.46,19.8,19.79,55.0]
[1693800179107,4.02149819,19.804,19.79,80.46]
[1693800187900,4.02149819,19.804,19.79,79.46]
[1693800218224,4.02149819,19.804,19.789,20.0]
[1693800218534,4.02149819,19.799,19.785,20.0]
[1693800219635,4.88489314,19.803,19.785,20.0]
[1693800220029,4.88489314,19.803,19.786,55.0]
[1693800220231,4.88489314,19.803,19.787,20.0]
[1693800220426,4.88489314,19.803,19.788,55.0]
[1693800220638,4.88489314,19.803,19.789,20.0]
[1693800224442,4.88489314,19.799,19.767,26.42591833]
[1693800224621,7.879,19.798,19.774,25.28263349]
[1693800224822,4.88489314,19.797,19.775,20.0]
[1693800225437,25.46,19.79,19.775,20.0]
[1693800226844,25.46,19.79,19.776,55.0]
[1693800227029,25.46,19.79,19.777,20.0]
[1693800227229,25.46,19.79,19.778,55.0]
[1693800227430,25.46,19.79,19.779,20.0]
[1693800227743,25.46,19.79,19.78,55.0]